Cogmind - Beta 14 @@@ ROGUE MODE // 2024.08.11 @ 15:11:46 Player: f3-rnm Result: Self-destructed Performance ------------- Evolutions (1) 500 Regions Visited (5) 1000 Robots Destroyed (26) 130 Value Destroyed (673) 673 Prototype IDs (25) 500 Alien Tech Used (0) 0 Bonus (414) 414 TOTAL SCORE: 3217 Bonus ------- Follower Combat Kills 114 Aligned with FarCom 300 Cogmind --------- Core Integrity 352/400 Matter 157/300 Energy 280/280 System Corruption 0% Temperature Cool (0) Movement Treading (160) Location -9/Exiles Parts ------- > --- POWER (1) -------- Heavy Ion Engine > --- PROPULSION (2) --- Light Treads Light Treads > --- UTILITY (4) ------ Improved Heat Sink Large Storage Unit Core Shielding Light Armor Plating > --- WEAPON (2) ------- Light Cannon Battle Cannon > --- INVENTORY (15) --- Heavy Ion Engine Light Nuclear Core Light Treads Light Treads Light Treads Compact Wheel Experimental Sensor Array Light Armor Plating Hacking Suite Bomb Drone Bay (16/16) Light Cannon Light Cannon Light Cannon Grenade Launcher Peak State ------------ > --- POWER ------------ Ion Engine > --- PROPULSION ------- Light Treads Light Treads > --- UTILITY ---------- Bomb Drone Bay > --- WEAPON ----------- Assault Rifle Light Assault Rifle > --- INVENTORY -------- Wheel Small Storage Unit Light Cannon [Rating: 19] Favorites ----------- Power Ion Engine Engine Ion Engine Propulsion Light Treads Treads Light Treads Utility Core Shielding Device Improved Heat Sink Storage Large Storage Unit Protection Core Shielding Weapon Assault Rifle Ballistic Gun Assault Rifle Ballistic Cannon Light Cannon Build | -11 -10 -10 -9 -9 -9 ------- Run | Yrd Mat Min Mat Min Exi Slots Evolved 2 | . . . 2 . . Power . | . . . . . . Propulsion . | . . . . . . Utility 2 | . . . 2 . . Weapon . | . . . . . . Parts Attached 23 | 6 2 3 9 3 . Power 3 | 1 . . 2 . . Engine 3 | 1 . . 2 . . Core . | . . . . . . Reactor . | . . . . . . Propulsion 7 | 2 . . 3 2 . Treads 7 | 2 . . 3 2 . Leg . | . . . . . . Wheel . | . . . . . . Hover . | . . . . . . Flight . | . . . . . . Utility 9 | 1 2 3 2 1 . Device 2 | . . 1 1 . . Storage 3 | 1 1 1 . . . Processor . | . . . . . . Hackware . | . . . . . . Protection 4 | . 1 1 1 1 . Artifact . | . . . . . . Weapon 4 | 2 . . 2 . . Energy Gun . | . . . . . . Energy Cannon . | . . . . . . Ballistic Gun 2 | 2 . . . . . Ballistic Cannon 2 | . . . 2 . . Launcher . | . . . . . . Special Weapon . | . . . . . . Impact Weapon . | . . . . . . Slashing Weapon . | . . . . . . Piercing Weapon . | . . . . . . Special Melee Weapon . | . . . . . . Unidentified Prototypes 2 | . . 1 1 . . Parts Lost . | . . . . . . Power . | . . . . . . Propulsion . | . . . . . . Utility . | . . . . . . Weapon . | . . . . . . Highest Loss Streak . | . . . . . . To Critical Strikes . | . . . . . . Average Slot Usage (%) 96 | . 97 99 84 100 100 Engine 12 | . 14 14 11 11 11 Treads 25 | . 28 28 21 22 22 Device 2 | . . . . 11 11 Storage 12 | . 14 13 11 11 11 Protection 16 | . 11 14 18 22 22 Ballistic Gun 16 | . 28 28 2 . . Ballistic Cannon 9 | . . . 19 22 22 Peak Build Rating 19 | 6 7 19 18 18 18 Average Rating 11 | 5 6 8 12 18 18 On Entrance 9 | . 6 7 10 18 18 Naked Turns . | . . . . . . Heaviest Build 39 | 13 29 29 39 39 39 Greatest Support 40 | 40 40 40 40 40 40 Greatest Overweight (x) 1 | . . . 1 . . Average Overweight (x) . | . . . . . . Largest Inventory Capacity 15 | 8 15 15 15 15 15 Average Capacity 13 | 7 10 14 15 15 15 Most Carried 15 | 2 8 13 15 15 15 Average Carried 10 | 1 4 9 14 15 15 Final Capacity 15 | 8 15 15 15 15 15 Final Carried 15 | 2 8 13 15 15 15 Class Distribution -------------------- 80% | Mutant 19% | Scavenger-Mutant Dominant Class ---------------- Mutant | -10/Materials Mutant | -10/Mines Mutant | -9/Materials Scavenger-Mutant | -9/Mines Scavenger-Mutant | -9/Exiles Resources | -11 -10 -10 -9 -9 -9 ----------- Run | Yrd Mat Min Mat Min Exi Matter Collected 672 | 255 167 84 134 32 . Remotely . | . . . . . . Salvage Created 969 | . 483 114 297 75 . Parts 58 | . 24 6 24 4 . Haulers Intercepted 2 | . . . 2 . . Recyclers Shooed 4 | . 4 . . . . Parts Field Recycled . | . . . . . . Retrieved Matter . | . . . . . . Parts Self-Destructed . | . . . . . . Prevented . | . . . . . . Kills | -11 -10 -10 -9 -9 -9 ------- Run | Yrd Mat Min Mat Min Exi Combat Hostiles Destroyed 15 | . 6 2 5 2 . Guns 8 | . 6 2 . . . Cannons 7 | . . . 5 2 . Classes Destroyed 9 | . 4 1 4 . . Worker 1 | . . 1 . . . Builder 1 | . . . 1 . . Tunneler 1 | . 1 . . . . Hauler 2 | . . . 2 . . Recycler 3 | . 3 . . . . Mechanic 1 | . . . 1 . . Watcher 2 | . 1 . 1 . . Grunt 11 | . 6 2 3 . . Sentry 4 | . . . 2 2 . Best Kill Streak 4 | . 4 1 4 2 . Combat Bots Only 3 | . 3 1 2 2 . Max Kills in Single Turn 1 | . 1 1 1 1 . Gunslinging . | . . . . . . Exploded . | . . . . . . Melee . | . . . . . . Uniques/NPCs Destroyed . | . . . . . . Combat | -11 -10 -10 -9 -9 -9 -------- Run | Yrd Mat Min Mat Min Exi Hostile Shots Fired 87 | . 35 16 24 12 . Missed 25 | . 11 4 5 5 . Damage Taken 809 | . 281 177 248 103 . Core 95 | . 35 12 24 24 . Absorbed by Shields . | . . . . . . Redirected to Shielding 21 | . 8 2 5 6 . Core Remaining (%) 90 | 100 . 81 . . . Volleys Fired 70 | . 38 11 14 7 . Largest 2 | . 2 2 2 2 . Hottest 74 | . 40 40 74 74 . Shots Fired 140 | . 76 22 28 14 . Gun 98 | . 76 22 . . . Cannon 42 | . . . 28 14 . Launcher . | . . . . . . Special . | . . . . . . Kinetic 140 | . 76 22 28 14 . Thermal . | . . . . . . Explosive . | . . . . . . Electromagnetic . | . . . . . . Robot Hit Streak 16 | . 11 5 16 9 . Robot Miss Streak 2 | . 2 2 2 1 . Penetration Max . | . . . . . . Secondary Targets 1 | . 1 . . . . Max Gunslinging Chain 1 | . 1 . . . . Shots Hit Robots 89 | . 46 13 19 11 . Core Hits 46 | . 24 7 12 3 . Critical Kills . | . . . . . . Critical Parts Destroyed . | . . . . . . Critical Strikes 1 | . . . 1 . . Blast 1 | . . . 1 . . Melee Attacks . | . . . . . . Impact . | . . . . . . Slashing . | . . . . . . Piercing . | . . . . . . Sneak Attacks . | . . . . . . Combat Hostiles . | . . . . . . Follow-up Attacks . | . . . . . . Damage Inflicted 1266 | . 511 140 406 209 . Guns 651 | . 511 140 . . . Cannons 615 | . . . 406 209 . Explosions . | . . . . . . Melee . | . . . . . . Ramming . | . . . . . . Kinetic 1266 | . 511 140 406 209 . Thermal . | . . . . . . Explosive . | . . . . . . Electromagnetic . | . . . . . . Impact . | . . . . . . Slashing . | . . . . . . Piercing . | . . . . . . Highest Corruption . | . . . . . . Average Corruption . | . . . . . . Corruption Purged . | . . . . . . Corruption Blocked . | . . . . . . Overload Shots . | . . . . . . Overflow Damage 5 | . . . . 5 . Projectiles 5 | . . . . 5 . Explosions . | . . . . . . Melee . | . . . . . . Knockbacks 1 | . . . . 1 . Impact . | . . . . . . Kinetic 1 | . . . . 1 . Secondary . | . . . . . . Self-Inflicted Damage . | . . . . . . Shots . | . . . . . . Rammed . | . . . . . . Targets Rammed . | . . . . . . Kicked . | . . . . . . Crushed . | . . . . . . Highest Temperature 446 | . 12 16 446 . . Average Temperature 75 | . 7 9 105 . . Received Heat Transfer 435 | . 153 117 129 36 . Siege Activations . | . . . . . . Robots Corrupted . | . . . . . . Combat Hostiles . | . . . . . . Parts Fried . | . . . . . . Impact Corruptions . | . . . . . . Robots Melted . | . . . . . . Combat Hostiles . | . . . . . . Parts Melted . | . . . . . . Heat Transferred . | . . . . . . Parts Sabotaged . | . . . . . . Parts Stolen . | . . . . . . Parts Stripped . | . . . . . . Power Chain Reactions . | . . . . . . Alert | -11 -10 -10 -9 -9 -9 ------- Run | Yrd Mat Min Mat Min Exi Peak Influence 336 | . 201 222 336 185 . Initial 130 | . . 3 86 130 . Average 91 | . 55 33 185 179 . Maximum Alert Level 1 | . 1 1 1 . . Low Security (%) 89 | 100 91 97 61 100 . Level 1 10 | . 8 2 38 . . Level 2 . | . . . . . . Level 3 . | . . . . . . Level 4 . | . . . . . . Level 5 . | . . . . . . High Security . | . . . . . . Max Security . | . . . . . . Squads Dispatched 2 | . 2 . . . . Investigation 2 | . 2 . . . . Extermination . | . . . . . . Reinforcement . | . . . . . . Assault . | . . . . . . Garrison . | . . . . . . Intercept . | . . . . . . Searches Triggered . | . . . . . . Construction Impeded . | . . . . . . Haulers Reinforced . | . . . . . . Active Scanning Responses . | . . . . . . Cargo Convoy Interrupts . | . . . . . . Stealth | -11 -10 -10 -9 -9 -9 --------- Run | Yrd Mat Min Mat Min Exi Distress Signals 1 | . . . 1 . . Communications Jammed . | . . . . . . Distress Signals . | . . . . . . Times Spotted 34 | . 10 10 12 2 . Peak Tracking Total 6 | . 5 3 6 2 . Tactical Retreats 3 | . . 2 1 . . Traps | -11 -10 -10 -9 -9 -9 ------- Run | Yrd Mat Min Mat Min Exi Traps Triggered 3 | . 2 . 1 . . Indirectly . | . . . . . . Trap Hack Attempts . | . . . . . . Triggered . | . . . . . . Disarmed . | . . . . . . Reprogrammed . | . . . . . . Reused . | . . . . . . Traps Extracted . | . . . . . . Installed . | . . . . . . Triggered . | . . . . . . Machines | -11 -10 -10 -9 -9 -9 ---------- Run | Yrd Mat Min Mat Min Exi Machines Disabled 1 | . . . . 1 . Max in Single Turn 1 | . . . . 1 . Machines Repaired . | . . . . . . Machines Dismantled . | . . . . . . Machines Sabotaged . | . . . . . . Overloaded Fab Kills . | . . . . . . Hacking | -11 -10 -10 -9 -9 -9 --------- Run | Yrd Mat Min Mat Min Exi Machines Accessed 3 | . . 1 1 . 1 Terminals 1 | . . . 1 . . Fabricators . | . . . . . . Repair Stations . | . . . . . . Recycling Units . | . . . . . . Scanalyzers . | . . . . . . Garrison Access . | . . . . . . Total Hacks 3 | . . 1 1 . 1 Successful 3 | . . 1 1 . 1 Failed . | . . . . . . Catastrophic . | . . . . . . Database Lockouts . | . . . . . . Manual 2 | . . . 1 . 1 Terminals 1 | . . . 1 . . Fabricators . | . . . . . . Repair Stations . | . . . . . . Recycling Units . | . . . . . . Scanalyzers . | . . . . . . Garrison Access . | . . . . . . Terminal Hacks 3 | . . 1 1 . 1 Open Door 1 | . . 1 . . . Branch Access Points 1 | . . . 1 . . Derelict Proto ID Bank 1 | . . . . . 1 Fabricator Hacks . | . . . . . . Repair Station Hacks . | . . . . . . Recycling Unit Hacks . | . . . . . . Scanalyzer . | . . . . . . Garrison Access Hacks . | . . . . . . Unauthorized Hacks . | . . . . . . Terminals . | . . . . . . Fabricators . | . . . . . . Repair Stations . | . . . . . . Recycling Units . | . . . . . . Scanalyzers . | . . . . . . Garrison Access . | . . . . . . Data Cores Recovered 1 | . . . 1 . . Used . | . . . . . . Hacking Detections 1 | . . . 1 . . Full Trace Events . | . . . . . . Feedback Events . | . . . . . . Feedback Blocked . | . . . . . . Robot Schematics Acquired . | . . . . . . Robots Built . | . . . . . . Authchips . | . . . . . . Time . | . . . . . . Total Robot Build Rating . | . . . . . . Part Schematics Acquired . | . . . . . . Parts Built . | . . . . . . Authchips . | . . . . . . Time . | . . . . . . Total Part Build Rating . | . . . . . . Parts Repaired . | . . . . . . Time . | . . . . . . Parts Recycled . | . . . . . . Recycled Matter . | . . . . . . Retrieved Matter . | . . . . . . Retrieved Components . | . . . . . . Parts Scanalyzed . | . . . . . . Part Schematics Acquired . | . . . . . . Parts Damaged . | . . . . . . Bothacking | -11 -10 -10 -9 -9 -9 ------------ Run | Yrd Mat Min Mat Min Exi Used RIF Installer . | . . . . . . Robots Hacked . | . . . . . . Non-combat . | . . . . . . Combat . | . . . . . . Robot Hacks Applied . | . . . . . . Relay Couplers Released . | . . . . . . Fabnet Peak Effective % . | . . . . . . Robots Rewired . | . . . . . . Allies Hacked . | . . . . . . Hacks Repelled . | . . . . . . Allies | -11 -10 -10 -9 -9 -9 -------- Run | Yrd Mat Min Mat Min Exi Total Allies 1 | . . 1 . . . Largest Group 1 | . . 1 1 . . Highest-Rated Group 31 | . . 31 31 . . Highest-Rated Ally 31 | . . 31 31 . . Total Orders . | . . . . . . Ally Attacks 11 | . . 8 3 . . Total Damage 171 | . . 107 64 . . Kills 7 | . . 5 2 . . Allies Corrupted . | . . . . . . Allies Melted . | . . . . . . Intel | -11 -10 -10 -9 -9 -9 ------- Run | Yrd Mat Min Mat Min Exi Robot Analysis Total . | . . . . . . Derelict Logs Recovered 2 | . . 1 . 1 . Drone Launches . | . . . . . . Drone Recoveries . | . . . . . . Exploration | -11 -10 -10 -9 -9 -9 ------------- Run | Yrd Mat Min Mat Min Exi Turns Passed 2058 | 76 545 583 342 308 204 Spaces Moved 1122 | 45 270 335 168 177 127 Core 5 | 5 . . . . . Treads 1117 | 40 270 335 168 177 127 Legs . | . . . . . . Wheels . | . . . . . . Hover . | . . . . . . Flight . | . . . . . . Fastest Speed 50 | 50 160 160 160 160 160 Average Speed 159 | 147 160 160 160 160 160 Slowest Speed 240 | 160 160 160 240 160 160 Overloaded Moves . | . . . . . . Propulsion Burnouts . | . . . . . . Robots Hopped . | . . . . . . Cave-ins Triggered . | . . . . . . Exploration Rate (%) 33 | 5 48 52 16 42 40 Regions Visited 5 Branch Regions 3 Pre-discovered Areas 2 | . . 2 . . . Known Exits Taken 1 | . . . 1 . . Unknown Exits Taken 4 | 1 1 1 . 1 . Scrap Searched 1 | . . 1 . . . Spaces Dug . | . . . . . . Terrain Destroyed 1 | . . . 1 . . Melee . | . . . . . . Projectile 1 | . . . 1 . . AOE . | . . . . . . Terrain Rammed . | . . . . . . Walls Destroyed . | . . . . . . Machines Disabled . | . . . . . . Actions | -11 -10 -10 -9 -9 -9 --------- Run | Yrd Mat Min Mat Min Exi Total 1262 | 52 314 363 218 188 127 Wait 10 | . . 3 7 . . Move 1117 | 44 269 334 167 176 127 Hop . | . . . . . . Pick Up 27 | 2 5 9 11 . . Fast Attach 13 | 6 1 2 4 . . Attach 5 | . . 1 4 . . Detach 1 | . . 1 . . . Swap 5 | . 1 . 1 3 . Drop 14 | . . 2 10 2 . Fire 70 | . 38 11 14 7 . Melee . | . . . . . . Ram . | . . . . . . Kick . | . . . . . . Crush . | . . . . . . Escape Stasis . | . . . . . . Rewire . | . . . . . . Trap . | . . . . . . Miscellaneous . | . . . . . . Route ------- -11/Scrapyard -10/Materials (discovered 2 exits: *Mat / *Min) -10/Mines -9/Materials (discovered 2 exits: *Min x2) -9/Mines (discovered 3 exits: [*Mat x2] / *Exi) -9/Exiles (discovered 1 exit: [*Min]) History --------- Turn | Location | Event 8 | -11/Scrapyard | Discovered new exit (range 15) 77 | -11/Scrapyard | Entered Materials 310 | -10/Materials | Build established: Mutant 362 | -10/Materials | Discovered new exit (range 13) 404 | -10/Materials | Discovered new exit (range 10) 622 | -10/Materials | Entered Mines 634 | -10/Mines | Learned location of Storage (-8) 774 | -10/Mines | Found the Drone Emporium 782 | -10/Mines | Found Prototype Device 785 | -10/Mines | Identified Bomb Drone Bay 938 | -10/Mines | A weapon hastily lodged in a ceiling crevice suddenly fell to the ground 1008 | -10/Mines | Found a damaged Exp. Sensor Array with a note attached 1014 | -10/Mines | Found Prototype Device 1107 | -10/Mines | Discovered new exit (range 5) 1120 | -10/Mines | Escorted by a lone wolf Derelict 1205 | -10/Mines | Entered Materials 1205 | -9/Materials | Accompanied by 1 ally 1205 | -9/Materials | Evolved 2 slots: Utility x2 1220 | -9/Materials | Identified exit to Mines 1547 | -9/Materials | Entered Mines 1647 | -9/Mines | Learned location of 1 exit from Materials 1749 | -9/Mines | Discovered new exit (range 6) 1802 | -9/Mines | Discovered new exit (range 5) 1848 | -9/Mines | Deemed a non-threat by the Exiles lab entrance 1848 | -9/Mines | Discovered new exit (range 5) 1855 | -9/Mines | Entered Exiles 1883 | -9/Exiles | Discovered new exit (range 15) 1897 | -9/Exiles | Met 8R-AWN 1923 | -9/Exiles | Met EX-HEX 1964 | -9/Exiles | Build established: Scavenger-Mutant 1967 | -9/Exiles | Met EX-BIN 1988 | -9/Exiles | Aligned with FarCom system 1990 | -9/Exiles | Given EX-Vault access code 2030 | -9/Exiles | Opened EX-Vault 2059 | -9/Exiles | Self-destructed Last Messages --------------- Modified TNC 0b10 Alert Chip Cloak of Protection Skeleton Box Trap Reconfigurator Supersonic Drone Bay Army-in-a-Box PSU Rigger Chronowheel AWS/Thermal Latent Energy Streamer Gui. Plasma Cannon Firepult YOLO Cannon AWS/Gauss XL Autogun Array AWS/Autocannon Field Lobotomy Kit Longsword +1 Deploy-a-Sentry Map ----- +----------------------------------------------------+ | | | | | | | | | | | | | | | | | | | | | | | | | | | ???????????????????????#########?????????????????? | | ???????????????????????# #] #?????????????????? | | ???????????????????????# ] X #?????????????????? | | ???????????????????????# #?????????????????? | | ???????????????????????# [ #?????????????????? | | ???????????????????????## ##?????????????????? | | ???????????????????????#X #??????????????????? | | ???????????????????????## #??????????????????? | | ????????????????????????# #??????????????????? | | ????????????????????????# #???#?#????????????? | | ????????????????????????# #??"""""???????????? | | ????????????????????????# ## """???????????? | | ????????????????????????#@ X""???????????? | | ????????????????????????# ## """???????????? | | ??????????????????####??# #??""""????????????? | | ??????????????????"""""?# #???##?????????????? | | ?????????????????"""" ## #??????????????????? | | ????????????????#""X" #??????????????????? | | ????????????????#" #??????????????????? | | ????????????????#" ## #??????????????????? | | ????????????????#""""""?# #?#########????????? | | ?????????????????#"###??# #?#"""""""#????????? | | ????????????????????????# #?#"""""""#????????? | | ????????????????????????# #?#"""""""#????????? | | ???????????????????????## ###"" """"#????????? | | ???????????????????????#" """"#????????? | | ???????????????????????#" """#????????? | | ???????????????????????#" """#????????? | | ???????????????????????#" """#????????? | | ???????????????????????#" """#????????? | | ???????????????????????#" """#????????? | | ???????????????????????## """"????????? | | ????????????????????????# """#????????? | | ????????????????????????#" "X" """"????????? | | ????????????????????????#" """ #????????? | | ????????????????????????#" """""""""#????????? | | ???????????????????????##" ###########????????? | +----------------------------------------------------+ Best States ------------- Heat Dissipation 42 Energy Generation 14 Energy Capacity 280 Matter Stores 300 Matter Capacity 300 Sight Range 16 Terrain Scan Density 10 Armor Coverage 150 Core Shielding 20 Evasion (%) 40 Recoil Reduction 2 Item Schematics ----------------- None Robot Schematics ------------------ None Fabricated ------------ Nothing Alien Tech Used ----------------- None Achievements -------------- None Challenges ------------ None Game ------ Seed DamperMiningMegatreads Manual? 0 Play Time 00:11:34 Cumulative 224.1 hours Start 2024.08.11 @ 14:07:50 End 2024.08.11 @ 15:11:46 Sessions 1 Manual Loads 0 Difficulty Rogue Special Mode None Game No. 235 Rogue 199 Adventurer 36 Explorer 0 Win Type - Total 10 Types 3/0/7/0/0/0/0/0/0 Lore% 59 Gallery% 81 Achievement% 71 Wizard Run 0 Options --------- Layout 0 ASCII 0 Keyboard 0 Movement Mouse Keybinds 0 Fullscreen 1 Font 18/SmallcapsGlow Map View 76x50 Zoom Use 0% Tactical HUD 1 Map Filters NONE Filters NONE Steam 1 RUN: f304dc11-6a43-4acc-828a-82fa9c084562